[Event "55th Rubinstein Memorial-A 2019"]
[Site "Polanica-Zdroj"]
[Date "2019.08.25"]
[Round "9.27"]
[White "Kacprzak, Karol"]
[Black "Skiba, Aleksandra"]
[Result "1/2-1/2"]
[ECO "B32"]
[WhiteElo "1973"]
[BlackElo "1703"]
[Annotator "NA"]
[PlyCount "139"]
[EventDate "2019.08.17"]
[EventType "swiss"]
[EventCountry "POL"]
[SourceTitle "playchess.com"]
[Source "ChessBase"]
[SourceQuality "1"]
[TimeControl "40/5400+30:1800+30"]

1. e4 {[%emt 0:00:00]} c5 {[%emt 0:00:00]} 2. Nf3 {[%emt 0:00:00]} Nc6 {[%emt 0:00:00]} 3. d4 {[%emt 0:00:00]} cxd4 {[%emt 0:00:00]} 4. Nxd4 {[%emt 0:00:00]} e5 {[%emt 0:00:00]} 5. Nb5 {[%emt 0:00:02]} d6 {[%emt 0:00:03]} 6. N1c3 {[%emt 0:00:05]} a6 {[%emt 0:00:05]} 7. Na3 {[%emt 0:00:05]} b5 {[%emt 0:00:05]} 8. Nd5 {[%emt 0:00:06]} Nge7 {[%emt 0:00:38]} 9. Be3 {[%emt 0:07:18]} Nxd5 {[%emt 0:07:13]} 10. exd5 {[%emt 0:01:00]} Nd4 {[%emt 0:15:27]} 11. Bxd4 {[%emt 0:07:40]} exd4 {[%emt 0:00:09]} 12. Qxd4 {[%emt 0:00:13]} Be7 {[%emt 0:00:23]} 13. c3 {[%emt 0:02:40]} O-O {[%emt 0:02:05]} 14. Be2 {[%emt 0:00:37]} Bf6 {[%emt 0:05:36]} 15. Qd2 {[%emt 0:01:29]} Re8 {[%emt 0:07:50]} 16. O-O {[%emt 0:02:13]} Bg5 {[%emt 0:13:40]} 17. f4 {[%emt 0:09:29]} Qb6+ {[%emt 0:00:22]} 18. Kh1 {[%emt 0:00:07]} Bh4 {[%emt 0:06:50]} 19. Nc2 {[%emt 0:04:27]} Bb7 {[%emt 0:01:08]} 20. Bf3 {[%emt 0:00:46]} Rac8 {[%emt 0:03:21]} 21. g3 {[%emt 0:03:51]} Bf6 {[%emt 0:00:07]} 22. Rae1 {[%emt 0:01:08]} g6 {[%emt 0:03:26]} 23. Ne3 {[%emt 0:07:04]} Bg7 {[%emt 0:02:59]} 24. Ng4 {[%emt 0:11:36]} h5 {[%emt 0:10:21]} 25. Ne3 {[%emt 0:05:03]} Qc5 {[%emt 0:02:04]} 26. Ng2 {[%emt 0:09:12]} Rxe1 {[%emt 0:03:36]} 27. Rxe1 {[%emt 0:00:10]} Kf8 {[%emt 0:00:15]} 28. f5 {[%emt 0:01:44]} gxf5 {[%emt 0:06:29]} 29. Nh4 {[%emt 0:00:18]} Re8 {[%emt 0:00:45]} 30. Rxe8+ {[%emt 0:01:34]} Kxe8 {[%emt 0:00:01]} 31. Nxf5 {[%emt 0:00:09]} Bf8 {[%emt 0:03:20]} 32. h4 {[%emt 0:04:44]} Qc4 {[%emt 0:02:06]} 33. Kh2 {[%emt 0:07:48]} Qxa2 {[%emt 0:01:59]} 34. Qe2+ {[%emt 0:00:35]} Kd7 {[%emt 0:01:33]} 35. Qg2 {[%emt 0:02:40]} Qc4 {[%emt 0:01:04]} 36. g4 {[%emt 0:01:52]} Qf4+ {[%emt 0:00:42]} 37. Kh3 {[%emt 0:00:37]} hxg4+ {[%emt 0:01:02]} 38. Bxg4 {[%emt 0:00:05]} Kd8 {[%emt 0:00:07]} 39. Qg1 {[%emt 0:06:19]} Qc4 {[%emt 0:01:38]} 40. Qb6+ {[%emt 0:00:00]} Qc7 {[%emt 0:00:00]} 41. Qd4 {[%emt 0:07:31]} Bc8 {[%emt 0:03:19]} 42. Qf6+ {[%emt 0:00:41]} Ke8 {[%emt 0:00:07]} 43. Ne3 {[%emt 0:05:51]} Bb7 {[%emt 0:05:28]} 44. h5 {[%emt 0:05:05]} Qe7 {[%emt 0:07:28]} 45. Qd4 {[%emt 0:03:28]} Qc7 {[%emt 0:04:32]} 46. Qa7 {[%emt 0:03:57]} Kd8 {[%emt 0:00:18]} 47. Kg3 {[%emt 0:04:49]} a5 {[%emt 0:01:34]} 48. Kh3 {[%emt 0:00:44]} Bg7 {[%emt 0:04:27]} 49. Nf5 {[%emt 0:00:16]} Bf6 {[%emt 0:01:03]} 50. Qe3 {[%emt 0:01:52]} Bxd5 {[%emt 0:01:21]} 51. Qh6 {[%emt 0:00:07]} Be7 {[%emt 0:02:37]} 52. Qh8+ {[%emt 0:00:06]} Kd7 {[%emt 0:00:34]} 53. Nd4+ {[%emt 0:00:53]} Be6 {[%emt 0:00:08]} 54. Bxe6+ {[%emt 0:03:40]} fxe6 {[%emt 0:00:01]} 55. Qg8 {[%emt 0:00:59]} Qc4 {[%emt 0:00:09]} 56. h6 {[%emt 0:01:28]} Qf1+ {[%emt 0:01:00]} 57. Qg2 {[%emt 0:01:08]} Qxg2+ {[%emt 0:02:46]} 58. Kxg2 {[%emt 0:00:02]} b4 {[%emt 0:00:07]} 59. cxb4 {[%emt 0:00:04]} axb4 {[%emt 0:00:04]} 60. b3 {[%emt 0:00:04]} Bf6 {[%emt 0:00:21]} 61. Nc2 {[%emt 0:00:12]} Ke7 {[%emt 0:01:45]} 62. Nxb4 {[%emt 0:00:10]} Kf7 {[%emt 0:00:03]} 63. Nc6 {[%emt 0:00:39]} Bg5 {[%emt 0:01:17]} 64. h7 {[%emt 0:00:50]} Kg7 {[%emt 0:00:05]} 65. Nd4 {[%emt 0:00:16]} Kxh7 {[%emt 0:00:18]} 66. Nxe6 {[%emt 0:00:23]} Bd2 {[%emt 0:00:07]} 67. Kf3 {[%emt 0:00:06]} Kg6 {[%emt 0:00:06]} 68. Ke4 {[%emt 0:00:04]} Kf7 {[%emt 0:00:28]} 69. Kd5 {[%emt 0:00:05]} Ke7 {[%emt 0:00:14]} 70. Ke4 1/2-1/2